[Event "DVM U12w 2023"]
[Site "Magdeburg"]
[Date "2023.12.28"]
[Round "4"]
[White "Özdemir, Anna Valentina"]
[Black "Piffczyk, Sandra"]
[Result "1/2-1/2"]
[WhiteElo "693"]
[BlackElo "1105"]
[PlyCount "40"]
[EventDate "2022.12.27"]
[EventType "team-tourn"]
[EventRounds "7"]
[EventCountry "GER"]
[TimeControl "40/5400+30:1800+30"]
[WhiteClock "1:23:12"]
[BlackClock "0:57:30"]

1. e4 {[%emt 0:00:03]} e5 {[%emt 0:00:08]} 2. Nf3 {[%emt 0:00:05]} Nc6 {[%emt 0:00:17]} 3. d4 {[%emt 0:00:08]} exd4 {[%emt 0:00:10]} 4. Bc4 {[%emt 0:00:07]} Be7 {[%emt 0:01:50]} 5. c3 {[%emt 0:00:16]} d6 {[%emt 0:01:57]} 6. cxd4 {[%emt 0:00:37]} Bg4 {[%emt 0:01:59]} 7. d5 {[%emt 0:00:34]} Ne5 {[%emt 0:03:42]} 8. Qd4 {[%emt 0:01:07]} Bxf3 {[%emt 0:01:44]} 9. Bb5+ {[%emt 0:00:48]} Kf8 {[%emt 0:01:33]} 10. O-O {[%emt 0:01:09]} Bh5 {[%emt 0:05:30]} 11. Bd2 {[%emt 0:01:47]} Bf6 {[%emt 0:02:38]} 12. Qe3 {[%emt 0:02:07]} Ng4 {[%emt 0:02:06]} 13. Qh3 {[%emt 0:01:28]} Bxb2 {[%emt 0:01:07]} 14. Qxh5 {[%emt 0:02:01]} Nxh2 {[%emt 0:01:52]} 15. Qxh2 {[%emt 0:00:19]} Bxa1 {[%emt 0:00:15]} 16. Nc3 {[%emt 0:00:16]} Bxc3 {[%emt 0:00:17]} 17. Bxc3 {[%emt 0:00:08]} Qg5 {[%emt 0:04:30]} 18. f4 {[%emt 0:01:05]} Qh6 {[%emt 0:01:42]} 19. Qg3 {[%emt 0:00:18]} Nf6 {[%emt 0:03:09]} 20. e5 {[%emt 0:02:55]} Ne4 {[%emt 0:06:34] normal} 1/2-1/2

[Event "DVM U12w 2023"]
[Site "Magdeburg"]
[Date "2023.12.29"]
[Round "5"]
[White "John, Linnea"]
[Black "Rafikova, Ailin"]
[Result "1-0"]
[WhiteElo "1393"]
[BlackElo "1399"]
[PlyCount "131"]
[EventDate "2022.12.27"]
[EventType "team-tourn"]
[EventRounds "7"]
[EventCountry "GER"]
[TimeControl "40/5400+30:1800+30"]
[WhiteClock "1:07:26"]
[BlackClock "0:25:47"]

1. e4 {[%emt 0:00:03]} c6 {[%emt 0:00:04]} 2. d4 {[%emt 0:00:05]} d5 {[%emt 0:00:07]} 3. exd5 {[%emt 0:00:08]} cxd5 {[%emt 0:00:05]} 4. Bd3 {[%emt 0:00:10]} Nc6 {[%emt 0:00:32]} 5. c3 {[%emt 0:00:06]} Qc7 {[%emt 0:00:50]} 6. h3 {[%emt 0:00:44]} Nf6 {[%emt 0:02:18]} 7. Nf3 {[%emt 0:01:43]} g6 {[%emt 0:01:30]} 8. O-O {[%emt 0:02:04]} Bf5 {[%emt 0:01:03]} 9. Re1 {[%emt 0:01:28]} Bxd3 {[%emt 0:02:05]} 10. Qxd3 {[%emt 0:00:58]} h6 {[%emt 0:04:34]} 11. Ne5 {[%emt 0:02:20]} Nd7 {[%emt 0:06:58]} 12. Bf4 {[%emt 0:06:01]} Ndxe5 {[%emt 0:06:27]} 13. dxe5 {[%emt 0:01:07]} e6 {[%emt 0:04:13]} 14. Na3 {[%emt 0:03:13]} a6 {[%emt 0:06:12]} 15. Nc2 {[%emt 0:10:12]} Bg7 {[%emt 0:05:35]} 16. Qe3 {[%emt 0:01:08]} Na5 {[%emt 0:04:08]} 17. Na3 {[%emt 0:04:09]} Rc8 {[%emt 0:06:07]} 18. Rad1 {[%emt 0:04:28]} b5 {[%emt 0:07:46]} 19. b3 {[%emt 0:03:51]} Qxc3 {[%emt 0:13:19]} 20. Qxc3 {[%emt 0:00:54]} Rxc3 {[%emt 0:00:28]} 21. Bd2 {[%emt 0:00:18]} Rd3 {[%emt 0:15:31]} 22. Bxa5 {[%emt 0:01:16]} Rxd1 {[%emt 0:00:38]} 23. Rxd1 {[%emt 0:00:11]} Bxe5 {[%emt 0:00:16]} 24. Rc1 {[%emt 0:01:44]} Kd7 {[%emt 0:02:22]} 25. Nb1 {[%emt 0:03:30]} Rb8 {[%emt 0:01:33]} 26. Bd2 {[%emt 0:02:13]} h5 {[%emt 0:01:42]} 27. b4 {[%emt 0:01:35]} Kd6 {[%emt 0:02:02]} 28. Be3 {[%emt 0:02:19]} Kd7 {[%emt 0:01:10]} 29. Nd2 {[%emt 0:00:23]} d4 {[%emt 0:02:26]} 30. Nf3 {[%emt 0:05:00]} Bd6 {[%emt 0:01:19]} 31. Bxd4 {[%emt 0:01:47]} Bxb4 {[%emt 0:00:25]} 32. Ne5+ {[%emt 0:00:59]} Ke8 {[%emt 0:00:12]} 33. Rc7 {[%emt 0:03:40]} Bd6 {[%emt 0:01:37]} 34. Rxf7 {[%emt 0:01:24]} Rd8 {[%emt 0:00:39]} 35. Rg7 {[%emt 0:02:03]} Bf8 {[%emt 0:00:39]} 36. Rxg6 {[%emt 0:02:57]} Rxd4 {[%emt 0:00:32]} 37. Rxe6+ {[%emt 0:00:25]} Be7 {[%emt 0:00:22]} 38. Rxe7+ {[%emt 0:00:17]} Kxe7 {[%emt 0:00:20]} 39. Nc6+ {[%emt 0:00:05]} Kd6 {[%emt 0:00:18]} 40. Nxd4 {[%emt 0:00:07]} Kc5 {[%emt 0:00:34]} 41. Nb3+ {[%emt 0:32:08]} Kb4 {[%emt 0:08:38]} 42. f4 {[%emt 0:00:00]} Kc4 {[%emt 0:02:18]} 43. g4 {[%emt 0:00:00]} hxg4 {[%emt 0:00:56]} 44. hxg4 {[%emt 0:00:00]} Kd5 {[%emt 0:00:34]} 45. g5 {[%emt 0:00:00]} Ke6 {[%emt 0:00:19]} 46. Kf2 {[%emt 0:00:00]} Kd5 {[%emt 0:01:04]} 47. f5 {[%emt 0:00:00]} Ke5 {[%emt 0:00:12]} 48. g6 {[%emt 0:00:00]} Kf6 {[%emt 0:00:07]} 49. Ke3 {[%emt 0:00:00]} Kg7 {[%emt 0:00:26]} 50. Kd4 {[%emt 0:00:00]} Kf6 {[%emt 0:00:10]} 51. Kc5 {[%emt 0:00:00]} Kg7 {[%emt 0:00:24]} 52. Kb6 {[%emt 0:00:00]} b4 {[%emt 0:00:09]} 53. Kxa6 {[%emt 0:00:00]} Kf6 {[%emt 0:00:03]} 54. Kb5 {[%emt 0:00:00]} Kg7 {[%emt 0:00:08]} 55. Kxb4 {[%emt 0:00:00]} Kf6 {[%emt 0:00:04]} 56. a4 {[%emt 0:00:00]} Kg7 {[%emt 0:00:03]} 57. a5 {[%emt 0:00:00]} Kf6 {[%emt 0:00:06]} 58. a6 {[%emt 0:00:00]} Ke7 {[%emt 0:00:12]} 59. a7 {[%emt 0:00:00]} Kf6 {[%emt 0:00:08]} 60. a8=Q {[%emt 0:00:00]} Kg7 {[%emt 0:00:09]} 61. Qb7+ {[%emt 0:00:00]} Kf6 {[%emt 0:01:16]} 62. Qc6+ {[%emt 0:00:00]} Kg5 {[%emt 0:00:12]} 63. g7 {[%emt 0:00:00]} Kf4 {[%emt 0:00:11]} 64. g8=Q {[%emt 0:00:00]} Ke3 {[%emt 0:00:19]} 65. Qg4 {[%emt 0:00:00]} Kd3 {[%emt 0:00:07]} 66. Qc3# {[%emt 0:00:00] normal} 1-0

[Event "DVM U12w 2023"]
[Site "Magdeburg"]
[Date "2023.12.29"]
[Round "5"]
[White "Zhou, Leyi Charlotte"]
[Black "Noennig, Lotte"]
[Result "1-0"]
[WhiteElo "1335"]
[BlackElo "1345"]
[PlyCount "111"]
[EventDate "2022.12.27"]
[EventType "team-tourn"]
[EventRounds "7"]
[EventCountry "GER"]
[TimeControl "40/5400+30:1800+30"]
[WhiteClock "0:11:57"]
[BlackClock "0:15:31"]

1. e4 {[%emt 0:00:04]} e5 {[%emt 0:00:10]} 2. Nf3 {[%emt 0:00:14]} Nc6 {[%emt 0:00:11]} 3. d4 {[%emt 0:00:16]} exd4 {[%emt 0:00:20]} 4. Nxd4 {[%emt 0:00:14]} Qf6 {[%emt 0:00:49]} 5. Be3 {[%emt 0:00:17]} Bc5 {[%emt 0:00:40]} 6. c3 {[%emt 0:00:06]} Nge7 {[%emt 0:00:28]} 7. Bc4 {[%emt 0:00:45]} O-O {[%emt 0:00:24]} 8. O-O {[%emt 0:00:29]} b6 {[%emt 0:00:35]} 9. f3 {[%emt 0:02:53]} Bb7 {[%emt 0:00:58]} 10. Qd2 {[%emt 0:03:39]} Rad8 {[%emt 0:01:38]} 11. Na3 {[%emt 0:01:01]} d5 {[%emt 0:01:42]} 12. Nxc6 {[%emt 0:14:15]} Bxc6 {[%emt 0:01:27]} 13. Bxc5 {[%emt 0:07:44]} dxc4 {[%emt 0:03:07]} 14. Bxe7 {[%emt 0:01:39]} Qxe7 {[%emt 0:01:10]} 15. Qe2 {[%emt 0:00:40]} b5 {[%emt 0:03:53]} 16. Nc2 {[%emt 0:00:47]} Rd7 {[%emt 0:02:23]} 17. Nd4 {[%emt 0:02:59]} Qc5 {[%emt 0:03:02]} 18. Qf2 {[%emt 0:00:38]} Bb7 {[%emt 0:01:34]} 19. Rad1 {[%emt 0:01:51]} Rfd8 {[%emt 0:01:31]} 20. Rd2 {[%emt 0:03:02]} b4 {[%emt 0:05:22]} 21. Rfd1 {[%emt 0:02:33]} a5 {[%emt 0:05:22]} 22. Kf1 {[%emt 0:08:14]} a4 {[%emt 0:02:51]} 23. Qh4 {[%emt 0:05:41]} Rd6 {[%emt 0:03:32]} 24. Nf5 {[%emt 0:07:24]} f6 {[%emt 0:11:27]} 25. Nxd6 {[%emt 0:01:12]} cxd6 {[%emt 0:00:41]} 26. cxb4 {[%emt 0:00:21]} Qxb4 {[%emt 0:00:16]} 27. Qg3 {[%emt 0:00:45]} Qb5 {[%emt 0:04:36]} 28. Ke1 {[%emt 0:03:58]} d5 {[%emt 0:04:35]} 29. exd5 {[%emt 0:01:17]} Re8+ {[%emt 0:03:05]} 30. Kf2 {[%emt 0:00:50]} Qb6+ {[%emt 0:00:36]} 31. Kf1 {[%emt 0:00:54]} Ba6 {[%emt 0:01:58]} 32. Qf2 {[%emt 0:14:58]} Qd6 {[%emt 0:17:12]} 33. Kg1 {[%emt 0:01:25]} Rb8 {[%emt 0:02:37]} 34. Qe3 {[%emt 0:03:18]} Bb7 {[%emt 0:02:15]} 35. Qe6+ {[%emt 0:01:09]} Qxe6 {[%emt 0:01:30]} 36. dxe6 {[%emt 0:00:06]} Re8 {[%emt 0:00:36]} 37. Re1 {[%emt 0:00:55]} Bc8 {[%emt 0:01:05]} 38. Rde2 {[%emt 0:01:45]} g5 {[%emt 0:00:47]} 39. Re4 {[%emt 0:00:55]} Ba6 {[%emt 0:00:35]} 40. f4 {[%emt 0:01:00]} Kg7 {[%emt 0:00:39]} 41. fxg5 {[%emt 0:30:29]} fxg5 {[%emt 0:30:07]} 42. Re5 {[%emt 0:00:23]} Re7 {[%emt 0:01:02]} 43. Rxg5+ {[%emt 0:00:31]} Kf6 {[%emt 0:00:10]} 44. Ra5 {[%emt 0:00:12]} Bc8 {[%emt 0:00:35]} 45. Rxa4 {[%emt 0:00:44]} Bxe6 {[%emt 0:00:18]} 46. Ra6 {[%emt 0:00:11]} Kf7 {[%emt 0:00:17]} 47. Rexe6 {[%emt 0:01:00]} Rxe6 {[%emt 0:00:24]} 48. Rxe6 {[%emt 0:00:05]} Kxe6 {[%emt 0:00:05]} 49. Kf2 {[%emt 0:00:09]} Kd5 {[%emt 0:00:06]} 50. Ke3 {[%emt 0:00:08]} Ke5 {[%emt 0:00:18]} 51. a4 {[%emt 0:00:07]} Kd5 {[%emt 0:00:18]} 52. a5 {[%emt 0:00:06]} Kc5 {[%emt 0:00:05]} 53. a6 {[%emt 0:00:07]} Kb6 {[%emt 0:00:09]} 54. Kd4 {[%emt 0:00:02]} Kxa6 {[%emt 0:00:09]} 55. Kxc4 {[%emt 0:00:03]} Kb6 {[%emt 0:00:47]} 56. Kd5 {[%emt 0:00:03] normal} 1-0

[Event "DVM U12w 2023"]
[Site "Magdeburg"]
[Date "2023.12.29"]
[Round "5"]
[White "Will, Elina"]
[Black "Busch, Lara Sophie"]
[Result "1-0"]
[WhiteElo "1325"]
[BlackElo "1330"]
[PlyCount "103"]
[EventDate "2022.12.27"]
[EventType "team-tourn"]
[EventRounds "7"]
[EventCountry "GER"]
[TimeControl "40/5400+30:1800+30"]
[WhiteClock "1:45:34"]
[BlackClock "1:13:48"]

1. e4 {[%emt 0:00:03]} e5 {[%emt 0:00:05]} 2. Nf3 {[%emt 0:00:05]} Nc6 {[%emt 0:00:08]} 3. d4 {[%emt 0:00:03]} exd4 {[%emt 0:00:12]} 4. Nxd4 {[%emt 0:00:05]} Nf6 {[%emt 0:00:24]} 5. Nc3 {[%emt 0:00:05]} Bb4 {[%emt 0:00:15]} 6. Nxc6 {[%emt 0:00:07]} bxc6 {[%emt 0:00:50]} 7. Bd3 {[%emt 0:00:05]} Bxc3+ {[%emt 0:00:48]} 8. bxc3 {[%emt 0:00:06]} O-O {[%emt 0:01:01]} 9. O-O {[%emt 0:00:05]} Re8 {[%emt 0:00:25]} 10. Qf3 {[%emt 0:00:33]} d5 {[%emt 0:01:23]} 11. exd5 {[%emt 0:00:22]} Bg4 {[%emt 0:01:07]} 12. Qg3 {[%emt 0:00:26]} cxd5 {[%emt 0:01:12]} 13. h3 {[%emt 0:00:31]} Bh5 {[%emt 0:01:24]} 14. Bh6 {[%emt 0:00:24]} Bg6 {[%emt 0:00:49]} 15. Bxg6 {[%emt 0:00:07]} fxg6 {[%emt 0:01:59]} 16. Bg5 {[%emt 0:00:28]} Ne4 {[%emt 0:00:56]} 17. Bxd8 {[%emt 0:00:33]} Nxg3 {[%emt 0:00:10]} 18. fxg3 {[%emt 0:00:09]} Raxd8 {[%emt 0:00:15]} 19. Rae1 {[%emt 0:00:11]} Rxe1 {[%emt 0:02:53]} 20. Rxe1 {[%emt 0:00:07]} Kf7 {[%emt 0:02:03]} 21. Kf2 {[%emt 0:00:15]} Rd6 {[%emt 0:01:16]} 22. Rb1 {[%emt 0:00:13]} Rc6 {[%emt 0:00:39]} 23. Rb3 {[%emt 0:00:11]} Ke6 {[%emt 0:01:24]} 24. Ke3 {[%emt 0:00:05]} Ke5 {[%emt 0:01:09]} 25. Ra3 {[%emt 0:00:34]} a5 {[%emt 0:01:19]} 26. Kd3 {[%emt 0:00:08]} Rc5 {[%emt 0:02:10]} 27. Rb3 {[%emt 0:00:23]} a4 {[%emt 0:04:39]} 28. Rb4 {[%emt 0:00:16]} Rc4 {[%emt 0:00:42]} 29. Rxc4 {[%emt 0:00:27]} dxc4+ {[%emt 0:00:05]} 30. Kxc4 {[%emt 0:00:04]} Ke4 {[%emt 0:00:16]} 31. Kb4 {[%emt 0:00:21]} Ke3 {[%emt 0:00:09]} 32. Kxa4 {[%emt 0:00:12]} Kf2 {[%emt 0:00:35]} 33. Kb5 {[%emt 0:00:04]} Kxg2 {[%emt 0:00:11]} 34. a4 {[%emt 0:00:02]} Kxg3 {[%emt 0:00:32]} 35. a5 {[%emt 0:00:04]} Kxh3 {[%emt 0:00:12]} 36. a6 {[%emt 0:00:04]} g5 {[%emt 0:00:21]} 37. a7 {[%emt 0:00:05]} g4 {[%emt 0:00:38]} 38. a8=Q {[%emt 0:00:08]} Kh2 {[%emt 0:00:48]} 39. Qe4 {[%emt 0:00:07]} h5 {[%emt 0:00:34]} 40. Qf5 {[%emt 0:00:06]} g3 {[%emt 0:00:39]} 41. Qxh5+ {[%emt 0:30:06]} Kg1 {[%emt 0:30:30]} 42. Kc4 {[%emt 0:00:05]} g2 {[%emt 0:00:38]} 43. Kd3 {[%emt 0:00:05]} Kf2 {[%emt 0:00:52]} 44. Qf7+ {[%emt 0:00:07]} Kg3 {[%emt 0:01:09]} 45. Qxc7+ {[%emt 0:00:13]} Kf2 {[%emt 0:00:28]} 46. Qf7+ {[%emt 0:00:27]} Kg3 {[%emt 0:00:19]} 47. Qxg7+ {[%emt 0:00:08]} Kf2 {[%emt 0:00:17]} 48. Qf6+ {[%emt 0:00:27]} Kg1 {[%emt 0:00:35]} 49. Ke2 {[%emt 0:00:06]} Kh1 {[%emt 0:00:23]} 50. Qh4+ {[%emt 0:00:07]} Kg1 {[%emt 0:00:10]} 51. Kf3 {[%emt 0:00:27]} Kf1 {[%emt 0:00:14]} 52. Qf2# {[%emt 0:00:14] normal} 1-0

[Event "DVM U12w 2023"]
[Site "Magdeburg"]
[Date "2023.12.29"]
[Round "5"]
[White "Shynkar, Daria"]
[Black "Hofmeier, Viktoria"]
[Result "1-0"]
[WhiteElo "1316"]
[BlackElo "1408"]
[PlyCount "105"]
[EventDate "2022.12.27"]
[EventType "team-tourn"]
[EventRounds "7"]
[EventCountry "GER"]
[TimeControl "40/5400+30:1800+30"]
[WhiteClock "0:24:51"]
[BlackClock "0:09:37"]

1. d4 {[%emt 0:00:01]} d5 {[%emt 0:00:13]} 2. c4 {[%emt 0:00:05]} c6 {[%emt 0:00:17]} 3. e3 {[%emt 0:00:09]} Nf6 {[%emt 0:00:54]} 4. Nc3 {[%emt 0:00:12]} a6 {[%emt 0:01:02]} 5. Qc2 {[%emt 0:04:33]} b5 {[%emt 0:02:54]} 6. cxd5 {[%emt 0:02:16]} cxd5 {[%emt 0:01:38]} 7. a3 {[%emt 0:01:28]} e6 {[%emt 0:03:18]} 8. Nf3 {[%emt 0:03:43]} Bd6 {[%emt 0:01:31]} 9. Bd3 {[%emt 0:02:42]} Nbd7 {[%emt 0:03:04]} 10. O-O {[%emt 0:03:59]} O-O {[%emt 0:02:01]} 11. Re1 {[%emt 0:05:03]} Bb7 {[%emt 0:02:51]} 12. Bd2 {[%emt 0:17:00]} Rc8 {[%emt 0:01:53]} 13. Qb1 {[%emt 0:01:17]} Nb6 {[%emt 0:00:59]} 14. b3 {[%emt 0:04:03]} Qe7 {[%emt 0:03:10]} 15. b4 {[%emt 0:02:35]} Nc4 {[%emt 0:01:06]} 16. Bxc4 {[%emt 0:00:08]} dxc4 {[%emt 0:01:49]} 17. e4 {[%emt 0:00:20]} Bc7 {[%emt 0:06:11]} 18. Bg5 {[%emt 0:04:28]} Qd7 {[%emt 0:03:54]} 19. Qc2 {[%emt 0:06:55]} Rfe8 {[%emt 0:03:35]} 20. Rad1 {[%emt 0:00:49]} Bb6 {[%emt 0:04:17]} 21. Ne5 {[%emt 0:03:23]} Qc7 {[%emt 0:01:21]} 22. Nf3 {[%emt 0:01:03]} Qd7 {[%emt 0:00:29]} 23. h3 {[%emt 0:00:45]} h6 {[%emt 0:01:48]} 24. Bh4 {[%emt 0:02:32]} a5 {[%emt 0:03:42]} 25. Qc1 {[%emt 0:01:45]} Kh7 {[%emt 0:01:47]} 26. Ne5 {[%emt 0:03:20]} Qe7 {[%emt 0:04:48]} 27. Qb1 {[%emt 0:01:45]} g5 {[%emt 0:04:22]} 28. Bg3 {[%emt 0:00:27]} Ba6 {[%emt 0:03:15]} 29. Nxf7 {[%emt 0:03:06]} Qxf7 {[%emt 0:00:24]} 30. e5+ {[%emt 0:00:06]} Qg6 {[%emt 0:00:36]} 31. Qxg6+ {[%emt 0:00:07]} Kxg6 {[%emt 0:00:06]} 32. exf6 {[%emt 0:00:07]} axb4 {[%emt 0:01:33]} 33. axb4 {[%emt 0:00:11]} Rcd8 {[%emt 0:00:09]} 34. Be5 {[%emt 0:00:41]} Rd7 {[%emt 0:01:43]} 35. Ra1 {[%emt 0:01:18]} Ra7 {[%emt 0:01:53]} 36. Ra2 {[%emt 0:01:21]} Kf7 {[%emt 0:04:42]} 37. Rea1 {[%emt 0:00:29]} Rea8 {[%emt 0:00:15]} 38. Ne4 {[%emt 0:01:28]} Kf8 {[%emt 0:14:29]} 39. Nd6 {[%emt 0:02:29]} Bc7 {[%emt 0:05:36]} 40. Nxb5 {[%emt 0:01:20]} Bxb5 {[%emt 0:02:25]} 41. Rxa7 {[%emt 0:30:18]} Rxa7 {[%emt 0:30:10]} 42. Rxa7 {[%emt 0:00:05]} Bxe5 {[%emt 0:00:07]} 43. dxe5 {[%emt 0:00:06]} Kg8 {[%emt 0:00:37]} 44. Re7 {[%emt 0:00:33]} Kf8 {[%emt 0:00:35]} 45. Rxe6 {[%emt 0:00:13]} c3 {[%emt 0:00:22]} 46. Re7 {[%emt 0:00:08]} c2 {[%emt 0:00:27]} 47. Rc7 {[%emt 0:00:08]} Bd3 {[%emt 0:00:34]} 48. e6 {[%emt 0:00:14]} Bf5 {[%emt 0:01:21]} 49. e7+ {[%emt 0:00:15]} Kf7 {[%emt 0:00:04]} 50. b5 {[%emt 0:00:12]} Bg6 {[%emt 0:00:14]} 51. b6 {[%emt 0:00:07]} Kxf6 {[%emt 0:00:13]} 52. Rxc2 {[%emt 0:00:16]} Bxc2 {[%emt 0:00:09]} 53. e8=Q {[%emt 0:00:05] normal} 1-0

[Event "DVM U12w 2023"]
[Site "Magdeburg"]
[Date "2023.12.29"]
[Round "5"]
[White "Winkler, Frida"]
[Black "Mersmann, Jasmin"]
[Result "1/2-1/2"]
[WhiteElo "1298"]
[BlackElo "1131"]
[PlyCount "72"]
[EventDate "2022.12.27"]
[EventType "team-tourn"]
[EventRounds "7"]
[EventCountry "GER"]
[TimeControl "40/5400+30:1800+30"]
[WhiteClock "1:14:18"]
[BlackClock "1:18:33"]

1. e4 {[%emt 0:00:01]} e5 {[%emt 0:00:09]} 2. Nf3 {[%emt 0:00:06]} Nc6 {[%emt 0:00:10]} 3. Bc4 {[%emt 0:00:07]} Bb4 {[%emt 0:00:17]} 4. c3 {[%emt 0:00:31]} Ba5 {[%emt 0:00:12]} 5. d4 {[%emt 0:00:38]} exd4 {[%emt 0:00:41]} 6. Nxd4 {[%emt 0:00:11]} Ne5 {[%emt 0:00:22]} 7. Bb3 {[%emt 0:01:03]} d6 {[%emt 0:00:16]} 8. O-O {[%emt 0:02:38]} Nf6 {[%emt 0:00:24]} 9. Bg5 {[%emt 0:01:33]} O-O {[%emt 0:00:17]} 10. Re1 {[%emt 0:01:14]} h6 {[%emt 0:00:49]} 11. Bh4 {[%emt 0:00:20]} Ng6 {[%emt 0:00:46]} 12. Bg3 {[%emt 0:00:21]} Re8 {[%emt 0:01:28]} 13. Nd2 {[%emt 0:02:23]} Bd7 {[%emt 0:02:06]} 14. Nc4 {[%emt 0:01:53]} Bb6 {[%emt 0:00:55]} 15. e5 {[%emt 0:06:40]} dxe5 {[%emt 0:03:25]} 16. Bxe5 {[%emt 0:00:50]} Bg4 {[%emt 0:03:03]} 17. f3 {[%emt 0:01:15]} Be6 {[%emt 0:00:47]} 18. Nxb6 {[%emt 0:01:15]} axb6 {[%emt 0:02:53]} 19. Nxe6 {[%emt 0:00:55]} fxe6 {[%emt 0:01:02]} 20. Qxd8 {[%emt 0:00:22]} Raxd8 {[%emt 0:00:58]} 21. Bxc7 {[%emt 0:00:23]} Rd2 {[%emt 0:01:33]} 22. Rxe6 {[%emt 0:00:36]} Rxe6 {[%emt 0:01:11]} 23. Bxe6+ {[%emt 0:00:11]} Kh7 {[%emt 0:00:07]} 24. b3 {[%emt 0:00:51]} Rd3 {[%emt 0:00:34]} 25. Bf5 {[%emt 0:00:38]} Rxc3 {[%emt 0:00:32]} 26. Bxg6+ {[%emt 0:00:16]} Kxg6 {[%emt 0:00:09]} 27. Bxb6 {[%emt 0:00:11]} Nd5 {[%emt 0:00:15]} 28. Bf2 {[%emt 0:00:58]} Rc2 {[%emt 0:01:05]} 29. Rd1 {[%emt 0:01:54]} Nf6 {[%emt 0:00:10]} 30. Rd6 {[%emt 0:01:58]} Rc1+ {[%emt 0:01:00]} 31. Be1 {[%emt 0:00:28]} Rxe1+ {[%emt 0:00:09]} 32. Kf2 {[%emt 0:00:08]} Ra1 {[%emt 0:00:13]} 33. a4 {[%emt 0:00:18]} Ra3 {[%emt 0:00:38]} 34. Rb6 {[%emt 0:00:10]} Kh7 {[%emt 0:00:40]} 35. Rxb7 {[%emt 0:00:26]} Nd5 {[%emt 0:00:11]} 36. Rb5 Nc3 {[%emt 0:00:30] normal} 1/2-1/2

[Event "DVM U12w 2023"]
[Site "Magdeburg"]
[Date "2023.12.29"]
[Round "5"]
[White "Fruth, Julia"]
[Black "Prasannavenkatesan, Ananya"]
[Result "0-1"]
[WhiteElo "1296"]
[BlackElo "1045"]
[PlyCount "108"]
[EventDate "2022.12.27"]
[EventType "team-tourn"]
[EventRounds "7"]
[EventCountry "GER"]
[TimeControl "40/5400+30:1800+30"]
[WhiteClock "0:54:19"]
[BlackClock "1:20:50"]

1. e4 {[%emt 0:00:01]} e5 {[%emt 0:00:05]} 2. Nf3 {[%emt 0:00:08]} Nc6 {[%emt 0:00:08]} 3. d4 {[%emt 0:00:05]} exd4 {[%emt 0:00:06]} 4. Nxd4 {[%emt 0:00:11]} Nf6 {[%emt 0:00:05]} 5. Nc3 {[%emt 0:00:14]} Bb4 {[%emt 0:00:10]} 6. Nxc6 {[%emt 0:00:16]} bxc6 {[%emt 0:00:06]} 7. Bd3 {[%emt 0:00:19]} d5 {[%emt 0:02:00]} 8. exd5 {[%emt 0:00:10]} cxd5 {[%emt 0:00:16]} 9. O-O {[%emt 0:00:14]} h6 {[%emt 0:00:19]} 10. Re1+ {[%emt 0:02:35]} Be6 {[%emt 0:00:10]} 11. Bb5+ {[%emt 0:03:26]} Kf8 {[%emt 0:01:37]} 12. a3 {[%emt 0:10:01]} Ba5 {[%emt 0:00:57]} 13. b4 {[%emt 0:00:50]} Bb6 {[%emt 0:00:19]} 14. h3 {[%emt 0:01:51]} a6 {[%emt 0:02:00]} 15. Be2 {[%emt 0:07:23]} c6 {[%emt 0:04:33]} 16. Na4 {[%emt 0:06:25]} Ba7 {[%emt 0:00:08]} 17. Bxa6 {[%emt 0:03:27]} Ne4 {[%emt 0:01:47]} 18. Rxe4 {[%emt 0:05:14]} dxe4 {[%emt 0:00:39]} 19. Qe2 {[%emt 0:02:51]} Qf6 {[%emt 0:03:45]} 20. Bb2 Qf4 {[%emt 0:00:30]} 21. Bb7 Rb8 {[%emt 0:00:30]} 22. Bxc6 e3 {[%emt 0:00:30]} 23. fxe3 Bxe3+ {[%emt 0:00:30]} 24. Kh1 Qg3 {[%emt 0:00:30]} 25. Qd3 Bxh3 {[%emt 0:00:30]} 26. Qd5 Bf4 {[%emt 0:00:30]} 27. Kg1 Be6 {[%emt 0:00:30]} 28. Qe4 Be3+ {[%emt 0:00:30]} 29. Kh1 Bh3 {[%emt 0:00:30]} 30. Be5 Bxg2+ {[%emt 0:00:30]} 31. Qxg2 Qxe5 {[%emt 0:00:30]} 32. Re1 Qh5+ {[%emt 0:00:30]} 33. Qh2 Qxh2+ {[%emt 0:00:30]} 34. Kxh2 Bf4+ {[%emt 0:00:30]} 35. Kg2 Rd8 {[%emt 0:00:30]} 36. b5 Rd2+ {[%emt 0:00:30]} 37. Kf3 g5 {[%emt 0:00:30]} 38. c3 Kg7 {[%emt 0:00:30]} 39. b6 Rc8 {[%emt 0:00:30]} 40. Bb5 Kf6 {[%emt 0:00:30]} 41. b7 Rcd8 {[%emt 0:30:30]} 42. Nc5 Kf5 {[%emt 0:00:30]} 43. Rg1 h5 {[%emt 0:00:30]} 44. Be2 g4+ {[%emt 0:00:30]} 45. Kf2 h4 {[%emt 0:00:30]} 46. Na6 g3+ {[%emt 0:00:30]} 47. Ke1 Re8 {[%emt 0:00:30]} 48. Kf1 Rexe2 {[%emt 0:00:30]} 49. b8=Q Bxb8 {[%emt 0:00:30]} 50. Nxb8 g2+ {[%emt 0:00:30]} 51. Rxg2 Rxg2 {[%emt 0:00:30]} 52. a4 h3 {[%emt 0:00:30]} 53. a5 h2 {[%emt 0:00:30]} 54. a6 h1=Q# {[%emt 0:00:30] normal} 0-1

[Event "DVM U12w 2023"]
[Site "Magdeburg"]
[Date "2023.12.29"]
[Round "5"]
[White "Leicher, Anna"]
[Black "Satheesh, Yazhini"]
[Result "1-0"]
[WhiteElo "1279"]
[BlackElo "859"]
[PlyCount "89"]
[EventDate "2022.12.27"]
[EventType "team-tourn"]
[EventRounds "7"]
[EventCountry "GER"]
[TimeControl "40/5400+30:1800+30"]
[WhiteClock "0:47:32"]
[BlackClock "0:36:31"]

1. e4 {[%emt 0:00:01]} e5 {[%emt 0:00:03]} 2. Nf3 {[%emt 0:00:07]} Nc6 {[%emt 0:00:13]} 3. d4 {[%emt 0:00:05]} d6 {[%emt 0:00:53]} 4. dxe5 {[%emt 0:00:08]} dxe5 {[%emt 0:00:25]} 5. Qxd8+ {[%emt 0:00:16]} Kxd8 {[%emt 0:00:36]} 6. Bb5 {[%emt 0:00:31]} Bd6 {[%emt 0:00:57]} 7. a3 {[%emt 0:02:33]} Nf6 {[%emt 0:00:42]} 8. Ng5 {[%emt 0:00:27]} Be6 {[%emt 0:04:24]} 9. Nd2 {[%emt 0:01:31]} a6 {[%emt 0:01:32]} 10. Bc4 {[%emt 0:00:27]} Kd7 {[%emt 0:02:37]} 11. Nxf7 {[%emt 0:00:56]} Bxf7 {[%emt 0:00:31]} 12. Bxf7 {[%emt 0:00:13]} Nd4 {[%emt 0:00:47]} 13. Bb3 {[%emt 0:00:47]} Nxb3 {[%emt 0:00:15]} 14. cxb3 {[%emt 0:00:29]} Rad8 {[%emt 0:01:13]} 15. O-O {[%emt 0:00:29]} Kc8 {[%emt 0:00:35]} 16. f3 {[%emt 0:00:38]} Bc5+ {[%emt 0:00:40]} 17. Kh1 {[%emt 0:00:18]} Bd6 {[%emt 0:01:16]} 18. Nc4 {[%emt 0:00:46]} h6 {[%emt 0:01:17]} 19. Be3 {[%emt 0:00:57]} Rhe8 {[%emt 0:00:57]} 20. Rac1 {[%emt 0:00:45]} Kb8 {[%emt 0:03:18]} 21. Na5 {[%emt 0:01:38]} Rd7 {[%emt 0:05:39]} 22. Rfd1 {[%emt 0:03:41]} g5 {[%emt 0:05:57]} 23. Rc4 {[%emt 0:05:46]} Ree7 {[%emt 0:07:09]} 24. b4 {[%emt 0:03:44]} Nh5 {[%emt 0:04:12]} 25. a4 {[%emt 0:15:09]} Re8 {[%emt 0:00:32]} 26. b5 {[%emt 0:00:57]} axb5 {[%emt 0:01:17]} 27. axb5 {[%emt 0:00:20]} Nf4 {[%emt 0:02:05]} 28. Ra1 {[%emt 0:01:04]} c5 {[%emt 0:09:54]} 29. bxc6 {[%emt 0:00:26]} bxc6 {[%emt 0:02:16]} 30. Nxc6+ {[%emt 0:00:19]} Kc7 {[%emt 0:03:37]} 31. Ra7+ {[%emt 0:06:26]} Kc8 {[%emt 0:00:40]} 32. Nxe5+ {[%emt 0:00:00]} Rc7 {[%emt 0:01:22]} 33. Ra8+ {[%emt 0:01:58]} Kb7 {[%emt 0:00:29]} 34. Rxe8 {[%emt 0:01:51]} Bxe5 {[%emt 0:00:30]} 35. Rb4+ {[%emt 0:05:30]} Kc6 {[%emt 0:00:48]} 36. Rxe5 {[%emt 0:00:47]} Nd3 {[%emt 0:00:30]} 37. Rc4+ {[%emt 0:01:05]} Kd6 {[%emt 0:01:03]} 38. Rd5+ {[%emt 0:00:29]} Ke7 {[%emt 0:00:51]} 39. Rxc7+ {[%emt 0:00:16]} Ke6 {[%emt 0:01:41]} 40. Rc6+ {[%emt 0:00:17]} Ke7 {[%emt 0:00:28]} 41. Rxd3 {[%emt 0:30:43]} Ke8 {[%emt 0:30:46]} 42. Rc7 {[%emt 0:00:12]} g4 {[%emt 0:00:13]} 43. Ra3 {[%emt 0:00:14]} Kd8 {[%emt 0:00:19]} 44. Rh7 {[%emt 0:00:10]} Kc8 {[%emt 0:00:17]} 45. Ra8# {[%emt 0:00:02] normal} 1-0